fUSD/lending_fUSD_20260228
["ID","MTS","AMOUNT","RATE_DAILY","PERIOD"]
[406865578,1772250640967,-336.36194614,0.000179,3]
[406865580,1772250640977,-10543.91988276,0.000179,2]
[406865583,1772250640991,-344.0,0.00017914,2]
[406865584,1772250641000,-504.26225979,0.00017918,2]
[406865587,1772250641010,-920.98,0.00017979,2]
[406865589,1772250641020,-506.23015856,0.00017982,2]
[406865591,1772250641030,-738.12518289,0.0001799,2]
[406865593,1772250641039,-738.12518289,0.0001799,2]
[406865595,1772250641049,-500.0,0.00017991,2]
[406865597,1772250641058,-500.0,0.00017991,2]
[406865599,1772250641069,-249322.3098685,0.00017992,2]
[406865601,1772250641079,-14649.5029406,0.00017992,2]
[406865603,1772250641088,-4883.1676468,0.00017992,2]
[406865605,1772250641097,-68112.9937358,0.00017992,2]
[406865607,1772250641106,-6510.8901958,0.00017992,2]
[406865609,1772250641116,-18589.2094764,0.00017992,2]
[406865611,1772250641125,-500.0,0.00017998,2]
[406865613,1772250641134,-500.0,0.00017998,2]
[406865615,1772250641143,-309.62563364,0.00017999,2]
[406865617,1772250641153,-500.0,0.00017999,2]
[406865619,1772250641162,-648.3262986,0.00017999,2]
[406865621,1772250641172,-300.0,0.00017999,2]
[406865623,1772250641181,-1432.94041959,0.00017999,5]
[406865625,1772250641191,-300.0,0.00017999,2]
[406865627,1772250641200,-500.0,0.00017999,2]
[406865629,1772250641209,-500.0,0.00017999,2]
[406865631,1772250641218,-500.0,0.00017999,2]
[406865633,1772250641227,-500.0,0.00017999,2]
[406865635,1772250641236,-500.0,0.00017999,2]
[406865637,1772250641246,-500.0,0.00017999,2]
[406865639,1772250641255,-238.17521615,0.00017999,2]
[406865641,1772250641264,-500.0,0.00017999,2]
[406865643,1772250641274,-500.0,0.00017999,2]
[406865645,1772250641284,-500.0,0.00017999,2]
[406865647,1772250641293,-500.0,0.00017999,2]
[406865649,1772250641303,-500.0,0.00017999,2]
[406865651,1772250641312,-500.0,0.00017999,2]
[406865653,1772250641321,-500.0,0.00017999,2]
[406865655,1772250641331,-500.0,0.00017999,2]
[406865657,1772250641340,-536.88822607,0.00017999,2]
[406865659,1772250641349,-300.0,0.00017999,2]
[406865661,1772250641359,-292.6907697,0.00017999,2]
[406865663,1772250641368,-300.0,0.00017999,2]
[406865665,1772250641378,-195.66587194,0.00017999,2]
[406865667,1772250641387,-3884400.72740901,0.00018,2]
[406865670,1772250641405,-543.26368152,0.00018,2]
[406865672,1772250641417,-36331.28395714,0.00018,2]
[406865674,1772250641427,-621.77,0.00018,2]
[406865677,1772250641442,-432.46183533,0.00018,2]
[406865679,1772250641453,-1298.58005086,0.00018,2]
[406865686,1772250641507,-525.36,0.00015068,2]
[406865688,1772250641516,-525.36,0.00015342,2]
[406865690,1772250641525,-428.21,0.00015616,2]
[406865692,1772250641535,-43356.49323369,0.00018,2]
[406865694,1772250641545,-2468.59639859,0.00018,2]
[406865696,1772250641564,-35233.38223165,0.00018,2]
[406865699,1772250641575,-621.01,0.00018,2]
[406865741,1772250643052,-758.9376,0.00013598,2]
[406865748,1772250643160,-692.4633319,0.00013598,2]
[406865749,1772250643169,-3667.7856382,0.00018,2]
[406865750,1772250645885,-614.52464211,0.00018,2]
[406865776,1772251538733,-542.34,8.564e-05,2]
[406865798,1772251832111,-250.0,8.564e-05,2]
[406865801,1772251832122,-116.29954206,8.761e-05,2]
[406865803,1772251832162,-133.70045794,8.761e-05,2]
[406865804,1772251832171,-1879.08308785,8.889e-05,2]
[406865805,1772251832182,-1283.82671787,8.889e-05,2]
[406865806,1772251832218,-522.04790989,8.889e-05,2]
[406865807,1772251832230,-298.36383299,8.889e-05,2]
[406865808,1772251832241,-8732.92487448,8.889e-05,2]
[406865809,1772251832275,-561.32919868,8.889e-05,2]
[406865810,1772251832286,-533.52341226,8.889e-05,2]
[406865811,1772251832297,-36850.18357002,8.889e-05,2]
[406865812,1772251832308,-7199.73233122,8.889e-05,2]
[406865830,1772251838411,-456.20695336,8.888e-05,2]
[406865831,1772251838421,-342.86445462,8.888e-05,2]
[406865832,1772251838431,-268.37016664,8.888e-05,2]
[406865833,1772251838442,-500.0,8.888e-05,2]
[406865834,1772251838451,-1942138.98506474,8.889e-05,2]
[406865835,1772251838460,-542.34,8.933e-05,2]
[406865836,1772251838470,-285.0,8.988e-05,2]
[406865837,1772251838479,-150.0,8.988e-05,2]
[406865838,1772251838488,-1200.0,8.988e-05,2]
[406865839,1772251838498,-542.34,9.301e-05,2]
[406865840,1772251838507,-250.0,9.42e-05,2]
[406865841,1772251838516,-542.34,9.67e-05,2]
[406865843,1772251838525,-150.0,9.726e-05,2]
[406865845,1772251838534,-150.0,9.726e-05,2]
[406865847,1772251838544,-150.0,9.726e-05,2]
[406865849,1772251838553,-150.0,9.726e-05,2]
[406865851,1772251838562,-150.0,9.726e-05,2]
[406865853,1772251838571,-150.0,9.726e-05,2]
[406865855,1772251838580,-150.0,9.781e-05,2]
[406865857,1772251838589,-220.61532295,9.781e-05,2]
[406865859,1772251838598,-214.04739671,9.836e-05,2]
[406865861,1772251838608,-255.0,9.887e-05,2]
[406865864,1772251838620,-1680.0,9.887e-05,2]
[406865866,1772251838629,-28510.8566828,9.95e-05,2]
[406865868,1772251838638,-1000.0,0.0001,2]
[406865870,1772251838647,-1967.55744025,0.0001,2]
[406865872,1772251838656,-151.0,0.0001,2]
[406865874,1772251838666,-151.0,0.0001,2]
[406865876,1772251838675,-151.0,0.0001,2]
[406865878,1772251838685,-151.0,0.0001,2]
[406865880,1772251838694,-151.0,0.0001,2]
[406865882,1772251838703,-151.0,0.0001,2]
[406865884,1772251838712,-151.0,0.0001,2]
[406865886,1772251838721,-151.0,0.0001,2]
[406865888,1772251838731,-151.0,0.0001,2]
[406865890,1772251838740,-500.0,0.0001,2]
[406865892,1772251838750,-151.0,0.0001,2]
[406865894,1772251838759,-151.0,0.0001,2]
[406865895,1772251838768,-500.0,0.0001,2]
[406865897,1772251838778,-151.0,0.0001,2]
[406865899,1772251838787,-151.0,0.0001,2]
[406865902,1772251838796,-500.0,0.0001,2]
[406865904,1772251838806,-151.0,0.0001,2]
[406865905,1772251838816,-151.0,0.0001,2]
[406865907,1772251838825,-334.50866629,0.0001,2]
[406865909,1772251838834,-151.0,0.0001,2]
[406865911,1772251838843,-151.0,0.0001,2]
[406865913,1772251838853,-151.0,0.0001,2]
[406865915,1772251838862,-151.0,0.0001,2]
[406865917,1772251838872,-151.0,0.0001,2]
[406865919,1772251838881,-151.0,0.0001,2]
[406865921,1772251838891,-151.0,0.0001,2]
[406865923,1772251838900,-151.0,0.0001,2]
[406865926,1772251838910,-151.0,0.0001,2]
[406865928,1772251838919,-151.0,0.0001,2]
[406865929,1772251838928,-151.0,0.0001,2]
[406865932,1772251838938,-151.0,0.0001,2]
[406865933,1772251838947,-151.0,0.0001,2]
[406865935,1772251838956,-151.0,0.0001,2]
[406865938,1772251838966,-151.0,0.0001,2]
[406865940,1772251838974,-151.0,0.0001,2]
[406865942,1772251838983,-151.0,0.0001,2]
[406865943,1772251838993,-500.0,0.0001,2]
[406865946,1772251839002,-500.0,0.0001,2]
[406865948,1772251839012,-500.0,0.0001,2]
[406865949,1772251839021,-500.0,0.0001,2]
[406865951,1772251839030,-500.0,0.0001,2]
[406865953,1772251839039,-500.0,0.0001,2]
[406865955,1772251839048,-500.0,0.0001,2]
[406865957,1772251839057,-500.0,0.0001,2]
[406865959,1772251839066,-500.0,0.0001,2]
[406865961,1772251839075,-500.0,0.0001,2]
[406865962,1772251839084,-500.0,0.0001,2]
[406865964,1772251839094,-500.0,0.0001,2]
[406865965,1772251839103,-370.90761384,0.0001,2]
[406865966,1772251839113,-738.12518289,0.0001,2]
[406865967,1772251839122,-164.0,0.00010003,2]
[406865968,1772251839131,-542.34,0.00010039,2]
[406865969,1772251839140,-500.0,0.00010277,2]
[406865970,1772251839149,-500.0,0.000103,2]
[406865971,1772251839158,-500.0,0.000103,2]
[406865972,1772251839305,-500.0,0.000103,2]
[406865973,1772251839316,-500.0,0.000103,2]
[406865974,1772251839325,-700.0,0.000103,2]
[406865975,1772251839335,-500.0,0.000103,2]
[406865976,1772251839344,-500.0,0.000103,2]
[406865977,1772251839353,-500.0,0.000103,2]
[406865978,1772251839363,-500.0,0.000103,2]
[406865979,1772251839377,-500.0,0.000103,2]
[406865980,1772251839386,-500.0,0.000103,2]
[406865981,1772251839395,-500.0,0.000103,2]
[406865982,1772251839405,-500.0,0.000103,2]
[406865983,1772251839415,-500.0,0.000103,2]
[406865984,1772251839424,-500.0,0.000103,2]
[406865985,1772251839433,-500.0,0.000103,2]
[406865986,1772251839444,-500.0,0.000103,2]
[406865987,1772251839453,-500.0,0.000103,2]
[406865988,1772251839462,-500.0,0.000103,2]
[406865989,1772251839471,-500.0,0.000103,2]
[406865990,1772251839480,-500.0,0.000103,2]
[406865991,1772251839490,-900.0,0.000103,2]
[406865992,1772251839499,-500.0,0.000103,2]
[406865993,1772251839509,-500.0,0.000103,2]
[406865994,1772251839523,-500.0,0.000103,2]
[406865995,1772251839532,-500.0,0.000103,2]
[406865996,1772251839541,-500.0,0.000103,2]
[406865997,1772251839550,-500.0,0.000103,2]
[406865998,1772251839560,-500.0,0.000103,2]
[406865999,1772251839569,-500.0,0.000103,2]
[406866000,1772251839578,-500.0,0.000103,2]
[406866001,1772251839587,-900.0,0.000103,2]
[406866002,1772251839596,-500.0,0.000103,2]
[406866003,1772251839606,-500.0,0.000103,2]
[406866004,1772251839615,-700.0,0.000103,2]
[406866005,1772251839625,-500.0,0.000103,2]
[406866006,1772251839634,-542.34,0.00010408,2]
[406866007,1772251839643,-1000.0,0.000105,2]
[406866008,1772251839652,-542.34,0.00010776,2]
[406866009,1772251839662,-433.0,0.00010876,2]
[406866010,1772251839672,-2351.0,0.00010876,2]
[406866011,1772251839681,-166.66,0.00010959,2]
[406866012,1772251839690,-150.0,0.00010959,2]
[406866013,1772251839699,-9461.11215015,0.00011,2]
[406866014,1772251839708,-1000.0,0.00011,2]
[406866015,1772251839717,-166.66,0.00011068,2]
[406866016,1772251839727,-1512.53,0.00011129,2]
[406866017,1772251839736,-542.34,0.00011145,2]
[406866018,1772251839745,-166.66,0.00011178,2]
[406866019,1772251839755,-166.66,0.00011288,2]
[406866020,1772251839764,-250.0,0.00011316,2]
[406866021,1772251839773,-166.66,0.00011397,2]
[406866022,1772251839783,-166.66,0.00011507,2]
[406866023,1772251839792,-542.34,0.00011514,2]
[406866024,1772251839801,-2500.0,0.000116,2]
[406866025,1772251839810,-194.22,0.00011732,2]
[406866026,1772251839819,-184.72,0.00011793,2]
[406866027,1772251839828,-542.34,0.00011883,2]
[406866028,1772251839838,-736.0,0.00011963,2]
[406866029,1772251839847,-2670.0,0.00011963,2]
[406866030,1772251839856,-500.0,0.0001207,2]
[406866031,1772251839866,-500.0,0.0001207,2]
[406866032,1772251839875,-500.0,0.0001207,2]
[406866033,1772251839885,-500.0,0.0001207,2]
[406866034,1772251839894,-500.0,0.0001207,2]
[406866035,1772251839903,-500.0,0.0001207,2]
[406866036,1772251839912,-500.0,0.0001207,2]
[406866037,1772251839922,-500.0,0.0001207,2]
[406866038,1772251839931,-500.0,0.0001207,2]
[406866039,1772251839941,-500.0,0.0001207,2]
[406866040,1772251839951,-500.0,0.0001207,2]
[406866041,1772251839960,-500.0,0.0001207,2]
[406866042,1772251839970,-500.0,0.0001207,2]
[406866043,1772251839979,-500.0,0.0001207,2]
[406866044,1772251839989,-500.0,0.0001207,2]
[406866045,1772251839998,-500.0,0.0001207,2]
[406866046,1772251840007,-500.0,0.0001207,2]
[406866047,1772251840016,-500.0,0.0001207,2]
[406866048,1772251840026,-250.65166475,0.0001207,2]
[406866049,1772251840035,-500.0,0.0001207,2]
[406866050,1772251840044,-500.0,0.0001207,2]
[406866051,1772251840053,-500.0,0.0001207,2]
[406866052,1772251840063,-500.0,0.0001207,2]
[406866053,1772251840072,-500.0,0.0001207,2]
[406866054,1772251840081,-500.0,0.0001207,2]
[406866055,1772251840091,-500.0,0.0001207,2]
[406866056,1772251840100,-500.0,0.0001207,2]
[406866057,1772251840109,-500.0,0.0001207,2]
[406866058,1772251840118,-500.0,0.0001207,2]
[406866059,1772251840127,-500.0,0.0001207,2]
[406866060,1772251840137,-500.0,0.0001207,2]
[406866061,1772251840146,-500.0,0.0001207,2]
[406866062,1772251840155,-504.40204054,0.0001207,2]
[406866063,1772251840165,-500.0,0.0001207,2]
[406866064,1772251840175,-503.76298871,0.0001207,2]
[406866065,1772251840184,-500.0,0.0001207,2]
[406866066,1772251840195,-500.0,0.0001207,2]
[406866067,1772251840204,-500.0,0.0001207,2]
[406866068,1772251840213,-500.0,0.0001207,2]
[406866069,1772251840223,-500.0,0.0001207,2]
[406866070,1772251840232,-500.0,0.0001207,2]
[406866071,1772251840241,-500.0,0.0001207,2]
[406866072,1772251840251,-500.0,0.0001207,2]
[406866073,1772251840260,-500.0,0.0001207,2]
[406866074,1772251840270,-500.0,0.0001207,2]
[406866075,1772251840280,-500.0,0.0001207,2]
[406866076,1772251840290,-500.0,0.0001207,2]
[406866078,1772251840300,-500.0,0.0001207,2]
[406866079,1772251840309,-500.0,0.0001207,2]
[406866080,1772251840319,-500.0,0.0001207,2]
[406866081,1772251840329,-750.65166475,0.0001207,2]
[406866082,1772251840338,-500.0,0.0001207,2]
[406866083,1772251840347,-500.0,0.0001207,2]
[406866084,1772251840357,-500.0,0.0001207,2]
[406866085,1772251840367,-9999.99,0.00012087,2]
[406866086,1772251840379,-150.99,0.00012087,2]
[406866087,1772251840388,-150.99,0.00012087,2]
[406866088,1772251840398,-13092.43,0.00012087,2]
[406866089,1772251840406,-542.34,0.00012252,2]
[406866090,1772251840418,-76280.0,0.000125,2]
[406866091,1772251840427,-1632.82604837,0.0001252,2]
[406866092,1772251840436,-542.34,0.0001262,2]
[406866093,1772251840447,-1000.0,0.00012873,2]
[406866094,1772251840457,-1432.94041959,0.00012912,3]
[406866095,1772251840466,-32888.5933,0.00012913,2]
[406866096,1772251840475,-1000.0,0.00012913,2]
[406866097,1772251840485,-542.34,0.00012989,2]
[406866098,1772251840495,-5531.0,0.00013,3]
[406866099,1772251840505,-18451.8597949,0.00013058,2]
[406866100,1772251840514,-196.0,0.00013158,2]
[406866101,1772251840523,-1632.82604834,0.00013289,2]
[406866102,1772251840532,-542.34,0.00013358,2]
[406866103,1772251840541,-5531.0,0.000134,5]
[406866104,1772251840551,-3240.0,0.00013425,2]
[406866105,1772251840560,-444.25243944,0.00013516,2]
[406866106,1772251840569,-1562.12302209,0.00013516,2]
[406866107,1772251840579,-3174.17877477,0.00013516,2]
[406866108,1772251840588,-22856.52778514,0.0001358,2]
[406866109,1772251840597,-18451.85979483,0.00013596,2]
[406866110,1772251840607,-375146.5397,0.00013599,2]
[406866111,1772251840616,-3377.93,0.00013615,2]
[406866112,1772251840625,-500.0,0.00013698,2]
[406866113,1772251840634,-500.0,0.00013698,2]
[406866114,1772251840644,-500.0,0.00013698,2]
[406866115,1772251840653,-500.0,0.00013698,2]
[406866116,1772251840663,-500.0,0.00013698,2]
[406866117,1772251840673,-500.0,0.00013698,2]
[406866118,1772251840682,-500.0,0.00013698,2]
[406866119,1772251840692,-329.64340271,0.00013698,2]
[406866120,1772251840701,-503.01854449,0.00013698,2]
[406866121,1772251840710,-500.0,0.00013698,2]
[406866122,1772251840720,-500.0,0.00013698,2]
[406866123,1772251840730,-500.0,0.00013698,2]
[406866124,1772251840739,-500.0,0.00013698,2]
[406866125,1772251840749,-500.0,0.00013698,2]
[406866126,1772251840758,-500.0,0.00013698,2]
[406866127,1772251840768,-500.0,0.00013698,2]
[406866128,1772251840777,-500.0,0.00013698,2]
[406866129,1772251840790,-500.0,0.00013698,2]
[406866130,1772251840804,-500.0,0.00013698,2]
[406866131,1772251840816,-500.0,0.00013698,2]
[406866132,1772251840828,-500.0,0.00013698,2]
[406866133,1772251840838,-500.0,0.00013698,2]
[406866134,1772251840849,-500.0,0.00013698,2]
[406866135,1772251840860,-500.0,0.00013698,2]
[406866136,1772251840872,-500.0,0.00013698,2]
[406866137,1772251840885,-500.0,0.00013698,2]
[406866138,1772251840896,-500.0,0.00013698,2]
[406866139,1772251840908,-500.0,0.00013698,2]
[406866140,1772251840919,-500.0,0.00013698,2]
[406866141,1772251840932,-500.0,0.00013698,2]
[406866142,1772251840945,-500.0,0.00013698,2]
[406866143,1772251840956,-270.1160722,0.00013698,2]
[406866144,1772251840967,-500.0,0.00013698,2]
[406866145,1772251840978,-624.58042463,0.00013698,2]
[406866146,1772251840988,-500.0,0.00013698,2]
[406866147,1772251841000,-500.0,0.00013698,2]
[406866148,1772251841010,-500.0,0.00013698,2]
[406866149,1772251841021,-500.0,0.00013698,2]
[406866150,1772251841034,-500.0,0.00013698,2]
[406866151,1772251841045,-500.0,0.00013698,2]
[406866152,1772251841057,-500.0,0.00013698,2]
[406866153,1772251841069,-500.0,0.00013698,2]
[406866154,1772251841080,-500.0,0.00013698,2]
[406866155,1772251841093,-500.0,0.00013698,2]
[406866156,1772251841104,-483.13999169,0.00013698,2]
[406866157,1772251841116,-500.0,0.00013698,2]
[406866158,1772251841127,-500.0,0.00013698,2]
[406866159,1772251841139,-500.0,0.00013698,2]
[406866160,1772251841151,-500.0,0.00013698,2]
[406866161,1772251841162,-500.0,0.00013698,2]
[406866162,1772251841173,-500.0,0.00013698,2]
[406866163,1772251841183,-500.0,0.00013698,2]
[406866164,1772251841194,-500.0,0.00013698,2]
[406866165,1772251841207,-500.0,0.00013698,2]
[406866166,1772251841218,-500.0,0.00013698,2]
[406866167,1772251841230,-500.0,0.00013698,2]
[406866168,1772251841241,-500.0,0.00013698,2]
[406866169,1772251841253,-500.0,0.00013698,2]
[406866170,1772251841265,-500.0,0.00013698,2]
[406866171,1772251841276,-522.03594903,0.00013698,2]
[406866172,1772251841287,-500.0,0.00013698,2]
[406866173,1772251841299,-500.0,0.00013698,2]
[406866174,1772251841311,-500.0,0.00013698,2]
[406866175,1772251841324,-500.0,0.00013698,2]
[406866176,1772251841336,-864.47,0.00013698,2]
[406866177,1772251841347,-500.0,0.00013698,2]
[406866178,1772251841359,-864.47,0.00013698,2]
[406866179,1772251841375,-500.0,0.00013698,2]
[406866180,1772251841386,-864.47,0.00013698,2]
[406866181,1772251841397,-500.0,0.00013698,2]
[406866182,1772251841407,-864.47,0.00013698,2]
[406866183,1772251841417,-864.47,0.00013698,2]
[406866184,1772251841426,-864.47,0.00013698,2]
[406866185,1772251841437,-864.47,0.00013698,2]
[406866186,1772251841447,-500.0,0.00013698,2]
[406866187,1772251841458,-512.80115338,0.00013698,2]
[406866188,1772251841470,-500.0,0.00013698,2]
[406866189,1772251841483,-500.0,0.00013698,2]
[406866190,1772251841495,-500.0,0.00013698,2]
[406866191,1772251841505,-500.0,0.00013698,2]
[406866192,1772251841515,-161.88293327,0.00013698,2]
[406866193,1772251841524,-508.5684283,0.00013698,2]
[406866194,1772251841533,-500.0,0.00013698,2]
[406866195,1772251841543,-500.0,0.00013698,2]
[406866196,1772251841554,-500.0,0.00013698,2]
[406866197,1772251841565,-500.0,0.00013698,2]
[406866198,1772251841576,-500.0,0.00013698,2]
[406866199,1772251841587,-500.0,0.00013698,2]
[406866200,1772251841597,-500.0,0.00013698,2]
[406866201,1772251841606,-500.0,0.00013698,2]
[406866202,1772251841616,-500.0,0.00013698,2]
[406866203,1772251841626,-500.0,0.00013698,2]
[406866204,1772251841636,-500.0,0.00013698,2]
[406866205,1772251841646,-500.0,0.00013698,2]
[406866206,1772251841657,-500.0,0.00013698,2]
[406866207,1772251841667,-500.0,0.00013698,2]
[406866208,1772251841677,-500.0,0.00013698,2]
[406866209,1772251841687,-500.0,0.00013698,2]
[406866210,1772251841697,-500.0,0.00013698,2]
[406866211,1772251841707,-500.0,0.00013698,2]
[406866212,1772251841717,-500.0,0.00013698,2]
[406866213,1772251841727,-224.16111404,0.00013698,2]
[406866214,1772251841738,-500.0,0.00013698,2]
[406866215,1772251841750,-500.0,0.00013698,2]
[406866216,1772251841760,-500.0,0.00013698,2]
[406866217,1772251841771,-500.0,0.00013698,2]
[406866218,1772251841781,-500.0,0.00013698,2]
[406866219,1772251841791,-500.0,0.00013698,2]
[406866220,1772251841802,-500.0,0.00013698,2]
[406866221,1772251841812,-500.0,0.00013698,2]
[406866222,1772251841823,-500.0,0.00013698,2]
[406866223,1772251841834,-500.0,0.00013698,2]
[406866224,1772251841845,-500.0,0.00013698,2]
[406866225,1772251841856,-500.0,0.00013698,2]
[406866226,1772251841867,-500.0,0.00013698,2]
[406866227,1772251841878,-500.0,0.00013698,2]
[406866228,1772251841888,-500.0,0.00013698,2]
[406866229,1772251841899,-830.3,0.00013698,2]
[406866230,1772251841909,-500.0,0.00013698,2]
[406866231,1772251841919,-830.3,0.00013698,2]
[406866232,1772251841930,-500.0,0.00013698,2]
[406866233,1772251841939,-830.3,0.00013698,2]
[406866234,1772251841950,-500.0,0.00013698,2]
[406866235,1772251841960,-830.3,0.00013698,2]
[406866236,1772251841970,-500.0,0.00013698,2]
[406866237,1772251841981,-830.3,0.00013698,2]
[406866238,1772251841991,-500.0,0.00013698,2]
[406866239,1772251842002,-830.3,0.00013698,2]
[406866240,1772251842013,-500.0,0.00013698,2]
[406866241,1772251842024,-830.3,0.00013698,2]
[406866242,1772251842034,-500.0,0.00013698,2]
[406866243,1772251842044,-830.3,0.00013698,2]
[406866244,1772251842054,-830.3,0.00013698,2]
[406866245,1772251842064,-830.3,0.00013698,2]
[406866246,1772251842075,-830.3,0.00013698,2]
[406866247,1772251842085,-500.0,0.00013698,2]
[406866248,1772251842095,-500.0,0.00013698,2]
[406866249,1772251842105,-500.0,0.00013698,2]
[406866250,1772251842115,-500.0,0.00013698,2]
[406866251,1772251842126,-219.67514616,0.00013698,2]
[406866252,1772251842135,-500.0,0.00013698,2]
[406866253,1772251842146,-500.0,0.00013698,2]
[406866254,1772251842156,-500.0,0.00013698,2]
[406866255,1772251842166,-500.0,0.00013698,2]
[406866256,1772251842177,-500.0,0.00013698,2]
[406866257,1772251842187,-500.0,0.00013698,2]
[406866258,1772251842198,-500.0,0.00013698,2]
[406866259,1772251842208,-500.0,0.00013698,2]
[406866260,1772251842218,-500.0,0.00013698,2]
[406866261,1772251842229,-500.0,0.00013698,2]
[406866262,1772251842239,-500.0,0.00013698,2]
[406866263,1772251842251,-500.0,0.00013698,2]
[406866264,1772251842262,-500.0,0.00013698,2]
[406866265,1772251842273,-500.0,0.00013698,2]
[406866266,1772251842283,-500.0,0.00013698,2]
[406866267,1772251842294,-500.0,0.00013698,2]
[406866268,1772251842305,-500.0,0.00013698,2]
[406866269,1772251842315,-500.0,0.00013698,2]
[406866270,1772251842325,-500.0,0.00013698,2]
[406866271,1772251842335,-500.0,0.00013698,2]
[406866272,1772251842346,-500.0,0.00013698,2]
[406866273,1772251842356,-500.0,0.00013698,2]
[406866274,1772251842368,-500.0,0.00013698,2]
[406866275,1772251842381,-500.0,0.00013698,2]
[406866276,1772251842391,-500.0,0.00013698,2]
[406866277,1772251842402,-500.0,0.00013698,2]
[406866278,1772251842413,-500.0,0.00013698,2]
[406866279,1772251842424,-500.0,0.00013698,2]
[406866280,1772251842435,-500.0,0.00013698,2]
[406866281,1772251842620,-500.0,0.00013698,2]
[406866282,1772251842634,-500.0,0.00013698,2]
[406866283,1772251842643,-500.0,0.00013698,2]
[406866284,1772251842652,-500.0,0.00013698,2]
[406866285,1772251842661,-500.0,0.00013698,2]
[406866286,1772251842671,-500.0,0.00013698,2]
[406866287,1772251842680,-500.0,0.00013698,2]
[406866288,1772251842689,-500.0,0.00013698,2]
[406866289,1772251842698,-500.0,0.00013698,2]
[406866290,1772251842708,-439.79063626,0.00013698,2]
[406866291,1772251842717,-843.23,0.00013699,2]
[406866292,1772251842726,-500.0,0.00013699,2]
[406866293,1772251842735,-500.0,0.00013699,2]
[406866294,1772251842744,-288.64917037,0.00013699,2]
[406866295,1772251842754,-500.0,0.00013699,2]
[406866296,1772251842763,-500.0,0.00013699,2]
[406866297,1772251842774,-500.0,0.00013699,2]
[406866298,1772251842783,-500.0,0.00013699,2]
[406866299,1772251842792,-500.0,0.00013699,2]
[406866300,1772251842802,-500.0,0.00013699,2]
[406866301,1772251842811,-527.70889143,0.00013699,2]
[406866302,1772251842820,-500.0,0.00013699,2]
[406866303,1772251842829,-164.35592024,0.00013699,2]
[406866304,1772251842838,-502.97347901,0.00013699,2]
[406866305,1772251842848,-500.0,0.00013699,2]
[406866306,1772251842857,-500.0,0.00013699,2]
[406866307,1772251842866,-500.0,0.00013699,2]
[406866308,1772251842876,-500.0,0.00013699,2]
[406866309,1772251842885,-500.0,0.00013699,2]
[406866310,1772251842894,-500.0,0.00013699,2]
[406866311,1772251842904,-500.0,0.00013699,2]
[406866312,1772251842913,-500.0,0.00013699,2]
[406866313,1772251842922,-310.96112452,0.00013699,2]
[406866314,1772251842932,-507.53207689,0.00013699,2]
[406866315,1772251842941,-500.81982724,0.00013699,2]
[406866316,1772251842951,-500.0,0.00013699,2]
[406866317,1772251842960,-500.0,0.00013699,2]